bitfinex/quotes_ETHUSD_20250721
["timestamp","ask_amount","ask_price","bid_price","bid_amount"]
[1753118034919,0.55,3786.8,3786.4,0.458]
[1753118035230,0.55,3786.8,3786.5,0.458]
[1753118035428,0.55,3786.8,3786.2,3.47235322]
[1753118035640,0.55,3786.8,3786.6,0.458]
[1753118035843,2.64059745,3787.1,3786.6,0.458]
[1753118036048,4.163,3787.0,3786.7,0.8188]
[1753118036248,4.162,3786.9,3786.8,0.458]
[1753118036453,4.164,3786.9,3786.8,0.458]
[1753118038124,4.164,3786.9,3786.8,3.09875208]
[1753118039263,0.002,3786.9,3786.8,3.09875208]
[1753118039571,4.294,3786.9,3786.8,3.09875208]
[1753118040155,0.134,3786.9,3786.8,3.91975208]
[1753118040667,0.458,3788.8,3786.8,3.91975208]
[1753118040668,0.132,3787.6,3787.5,3.46126402]
[1753118040871,0.132,3787.6,3787.5,3.91926402]
[1753118041075,4.161,3788.1,3788.0,3.43391552]
[1753118041379,4.161,3788.1,3787.8,2.64005193]
[1753118041547,0.132,3787.8,3787.7,3.43412461]
[1753118041943,0.132,3787.8,3787.7,1.252]
[1753118042469,0.132,3787.8,3787.7,3.89212461]
[1753118044954,0.132,3787.8,3787.7,1.252]
[1753118045994,0.132,3787.8,3787.4,0.7501]
[1753118046161,0.132,3787.5,3787.4,0.7501]
[1753118046361,0.132,3787.5,3787.4,3.84843373]
[1753118051556,4.156,3788.4,3788.1,2.63980135]
[1753118051759,4.156,3788.4,3788.2,3.09775782]
[1753118052365,4.156,3788.4,3788.2,0.458]
[1753118052566,4.156,3788.4,3787.9,0.7505]
[1753118052567,0.1312,3788.2,3787.9,0.7505]
[1753118053087,0.1312,3787.9,3787.6,3.42813355]
[1753118053262,0.1312,3787.9,3787.8,2.64000779]
[1753118053688,0.1312,3787.9,3787.8,3.09800779]
[1753118054872,0.1312,3787.9,3787.8,0.458]
[1753118055076,0.1312,3787.9,3787.6,0.788]
[1753118055278,0.7784,3788.3,3787.7,2.64009351]
[1753118055480,1.53600822,3788.3,3787.7,2.64009351]
[1753118055678,1.53600822,3788.3,3787.8,2.64004559]
[1753118055963,1.53600822,3788.3,3787.6,1.246]
[1753118055964,0.132,3787.7,3787.6,1.246]
[1753118056161,0.132,3787.7,3787.4,2.64027555]
[1753118056402,0.132,3787.7,3787.4,0.444]
[1753118056606,4.156,3787.8,3787.4,0.444]
[1753118056791,0.132,3787.5,3787.4,0.444]
[1753118057114,0.132,3787.5,3787.4,3.08433373]
[1753118057479,0.132,3787.5,3787.4,0.444]
[1753118058016,0.132,3787.5,3787.0,0.832]
[1753118058312,5.3949,3787.4,3787.1,0.444]
[1753118058514,4.156,3787.3,3787.1,0.444]
[1753118058710,18.656,3787.3,3787.2,0.444]
[1753118058880,18.656,3787.3,3787.2,3.08447317]
[1753118059080,0.55,3788.1,3787.2,3.08447317]
[1753118059415,0.132,3787.4,3787.3,3.84100345]
[1753118060715,0.132,3787.4,3787.3,3.86740748]
[1753118060887,0.132,3787.4,3787.3,3.84100345]
[1753118061089,0.132,3787.4,3787.3,3.39700345]
[1753118061289,0.132,3787.4,3787.3,3.84100345]
[1753118063204,0.132,3787.4,3787.3,1.2006]
[1753118063401,0.132,3787.4,3787.2,2.64042231]
[1753118063602,0.132,3787.4,3787.3,2.64040345]
[1753118064007,0.132,3787.4,3787.3,3.08440345]
[1753118064705,0.132,3787.4,3787.3,0.444]
[1753118065076,0.132,3787.4,3787.0,3.90934933]
[1753118065280,2.64020881,3787.6,3787.0,1.2688]
[1753118065514,0.132,3787.2,3787.0,1.2688]
[1753118065813,0.132,3787.2,3787.0,0.444]
[1753118066515,0.132,3787.2,3786.8,0.001]
[1753118066719,0.132,3787.2,3786.8,2.64173321]
[1753118066884,0.132,3787.2,3787.0,2.64056773]
[1753118067082,0.132,3787.2,3786.9,3.08465549]
[1753118067323,0.132,3787.2,3786.9,0.444]
[1753118067518,0.132,3787.2,3786.9,3.0846752]
[1753118067684,0.132,3787.2,3786.8,0.001]
[1753118067885,1.8787,3787.2,3786.8,0.001]
[1753118068507,2.64054289,3787.1,3786.8,0.001]
[1753118068718,1.8787,3787.2,3786.8,0.001]
[1753118068719,2.64068235,3786.9,3786.8,0.001]
[1753118068915,4.155,3787.0,3786.8,0.001]
[1753118069119,2.64068235,3786.9,3786.8,0.001]
[1753118069317,3.50812059,3786.9,3786.8,0.001]
[1753118069832,4.48692059,3786.9,3786.8,0.001]
[1753118071220,4.05812059,3786.9,3786.8,0.001]
[1753118071927,2.6408651,3786.7,3786.0,3.08428469]
[1753118072109,4.155,3786.6,3786.0,3.08428469]
[1753118072284,0.132,3786.2,3786.0,0.443]
[1753118073027,0.132,3786.2,3785.7,0.8132]
[1753118073524,0.132,3786.2,3785.8,0.02641449]
[1753118073937,0.132,3786.2,3785.9,3.08533573]
[1753118074140,0.132,3786.2,3785.9,0.444]
[1753118074346,0.132,3786.2,3786.0,0.444]
[1753118075543,0.55,3786.1,3785.8,0.02641449]
[1753118075702,6.79631195,3786.0,3785.8,0.444]
[1753118075904,6.79631195,3786.0,3785.5,0.001]
[1753118075905,6.79631715,3786.0,3785.5,0.001]
[1753118076124,2.64137985,3785.9,3785.5,0.001]
[1753118076526,2.64149974,3785.8,3785.5,0.001]
[1753118076841,4.155,3785.7,3785.5,0.001]
[1753118077137,4.155,3785.7,3785.5,0.445]
[1753118078048,6.79651974,3785.7,3785.5,0.445]
[1753118078585,6.79651974,3785.7,3785.5,0.001]
[1753118078586,2.64158918,3785.6,3785.5,0.001]
[1753118078801,4.39748918,3785.6,3785.5,0.001]
[1753118079229,18.98524645,3785.6,3785.5,0.001]
[1753118080837,21.98524645,3785.6,3785.5,0.001]
[1753118081072,24.61278038,3785.6,3785.5,0.001]
[1753118082160,32.42278038,3785.6,3785.5,0.001]
[1753118082793,32.42278038,3785.6,3785.5,1e-08]
[1753118084601,38.76178038,3785.6,3785.5,1e-08]
[1753118086865,42.91778038,3785.6,3785.5,1e-08]
[1753118087061,42.91678038,3785.6,3785.5,1e-08]
[1753118087718,37.78298038,3785.6,3785.5,1e-08]
[1753118088003,41.85022311,3785.6,3785.5,1e-08]
[1753118088205,34.46812311,3785.6,3785.5,1e-08]
[1753118088409,38.62312311,3785.6,3785.5,1e-08]
[1753118088559,35.98153393,3785.6,3785.5,1e-08]
[1753118088867,38.62312311,3785.6,3785.5,1e-08]
[1753118089068,41.62312311,3785.6,3785.5,1e-08]
[1753118089959,42.09032311,3785.6,3785.5,1e-08]
[1753118090467,42.39222311,3785.6,3785.5,1e-08]
[1753118090798,42.85942311,3785.6,3785.5,1e-08]
[1753118093977,7.00319853,3785.3,3785.2,1e-08]
[1753118094203,21.59573246,3785.3,3785.2,1e-08]
[1753118094563,36.56293246,3785.3,3785.2,1e-08]
[1753118095267,32.40793246,3785.3,3785.2,1e-08]
[1753118095622,36.56293246,3785.3,3785.2,1e-08]
[1753118096286,32.40793246,3785.3,3785.2,1e-08]
[1753118096487,31.94073246,3785.3,3785.2,1e-08]
[1753118096818,36.09573246,3785.3,3785.2,1e-08]
[1753118097039,22.31,3785.3,3785.2,0.47030001]
[1753118097170,26.465,3785.3,3785.2,0.47030001]
[1753118097808,29.10679853,3785.3,3785.2,0.47030001]
[1753118098123,26.465,3785.3,3785.2,0.47030001]
[1753118098410,29.10679853,3785.3,3785.2,0.47030001]
[1753118098723,34.34854349,3785.3,3785.2,1e-08]
[1753118099399,34.89854349,3785.3,3785.2,1e-08]
[1753118100110,36.19624349,3785.3,3785.2,1e-08]
[1753118101690,7.00884753,3784.8,3784.7,1e-08]
[1753118101871,18.97284753,3784.8,3784.7,1e-08]
[1753118102080,21.60153869,3784.8,3784.7,1e-08]
[1753118102531,36.10153869,3784.8,3784.7,1e-08]
[1753118102714,37.68653869,3784.8,3784.7,1e-08]
[1753118103422,40.66090112,3784.8,3784.7,1e-08]
[1753118103619,5.55780613,3784.0,3783.9,1e-08]
[1753118103770,13.6229841,3784.0,3783.9,1e-08]
[1753118103976,14.0901841,3784.0,3783.9,1e-08]
[1753118104193,28.5901841,3784.0,3783.9,1e-08]
[1753118104807,3.19368423,3782.6,3781.9,0.4703]
[1753118105024,2.64424348,3781.8,3781.7,0.78894409]
[1753118105206,7.34824348,3781.8,3781.7,1.25924409]
[1753118105417,21.84824348,3781.8,3781.7,0.4703]
[1753118105598,2.64436965,3781.7,3781.4,0.4703]
[1753118105930,4.154,3781.6,3781.4,0.4703]
[1753118106226,0.55,3781.4,3780.5,0.001]
[1753118106393,7.34852319,3781.4,3780.9,0.4703]
[1753118106721,10.34852319,3781.4,3780.6,0.4703]
[1753118106922,10.54283571,3781.4,3780.5,0.001]
[1753118107074,11.82513571,3781.4,3780.5,0.001]
[1753118107282,27.84557014,3781.4,3781.3,1e-08]
[1753118108318,38.52047644,3781.4,3781.3,1e-08]
[1753118110385,4.02008279,3780.6,3780.5,1e-08]
[1753118110719,21.84898909,3780.6,3780.5,1e-08]
[1753118110920,22.31618909,3780.6,3780.5,1e-08]
[1753118111121,39.3133074,3780.6,3780.5,1e-08]
[1753118111422,35.1583074,3780.6,3780.5,1e-08]
[1753118111717,39.3133074,3780.6,3780.5,1e-08]
[1753118112882,35.1583074,3780.6,3780.5,1e-08]
[1753118113095,39.3133074,3780.6,3780.5,1e-08]
[1753118113290,27.6212011,3780.6,3780.5,1e-08]
[1753118113537,23.9334011,3780.6,3780.5,1e-08]
[1753118113736,28.0894011,3780.6,3780.5,1e-08]
[1753118114024,28.6394011,3780.6,3780.5,1e-08]
[1753118115384,3.19627272,3778.9,3778.8,0.7844]
[1753118115579,0.55,3778.9,3778.8,0.7844]
[1753118115779,7.706,3778.9,3778.8,0.7844]
[1753118116001,10.35227272,3778.9,3778.8,0.7844]
[1753118116195,6.19641278,3778.7,3778.6,0.001]
[1753118116398,12.06228133,3778.7,3778.6,0.001]
[1753118119620,7.90628133,3778.7,3778.6,0.001]
[1753118119826,12.06328133,3778.7,3778.6,0.001]
[1753118121364,12.06328133,3778.7,3778.6,0.4412]
[1753118122644,7.90628133,3778.7,3778.6,0.4412]
[1753118122822,26.56328133,3778.7,3778.6,0.4412]
[1753118124640,14.5,3778.7,3778.6,0.4412]
[1753118124843,14.5,3778.7,3778.6,3.91248282]
[1753118125045,18.657,3778.7,3778.6,3.91248282]
[1753118125545,4.157,3778.7,3778.6,3.91248282]
[1753118126542,0.55,3779.1,3778.6,3.91248282]
[1753118126709,4.157,3779.0,3778.7,1.265]
[1753118126905,7.157,3779.0,3778.9,2.64627272]
[1753118127248,3.0,3779.0,3778.9,3.08647272]
[1753118127403,4.157,3779.0,3778.9,0.4402]
[1753118127604,14.5,3779.3,3779.2,2.64606265]
[1753118127807,18.657,3779.3,3779.2,3.08626265]
[1753118128202,7.81,3780.4,3779.2,0.4402]
[1753118128554,5.20095339,3780.3,3779.3,0.8172]
[1753118128855,14.5,3780.2,3779.4,0.4402]
[1753118129020,3.0,3780.0,3779.5,2.64579625]
[1753118129207,0.55,3779.8,3779.6,3.0859783]
[1753118129542,2.64522382,3780.4,3779.6,2.64573419]
[1753118129702,0.55,3780.1,3779.6,2.64573419]
[1753118129902,0.55,3779.9,3779.7,0.4402]
[1753118130152,4.157,3779.8,3779.7,0.4402]
[1753118130646,18.657,3779.8,3779.7,0.4402]
[1753118131250,18.657,3779.8,3779.7,3.08591262]
[1753118131611,18.657,3779.8,3779.7,0.4402]
[1753118132311,18.657,3779.8,3779.7,3.08591262]
[1753118132821,18.657,3779.8,3779.7,0.4402]
[1753118133550,4.157,3779.8,3779.7,3.08591262]
[1753118133749,3.0,3780.5,3779.8,0.8022]
[1753118133947,2.64501492,3780.7,3779.8,0.8022]
[1753118133948,3.0,3780.3,3779.9,0.4402]
[1753118134150,3.0,3780.1,3779.9,0.4402]
[1753118134321,4.156,3780.0,3779.9,0.4402]
[1753118134827,18.656,3780.0,3779.9,0.4402]
[1753118137553,14.5,3780.0,3779.9,0.4402]
[1753118138223,14.5,3780.0,3779.8,3.44779469]
[1753118138224,0.55,3779.9,3779.8,0.8022]
[1753118138456,0.55,3779.7,3779.2,0.4402]
[1753118138653,3.0,3779.4,3779.0,0.8041]
[1753118138821,2.64620269,3779.0,3778.9,0.001]
[1753118139024,9.80020269,3779.0,3778.9,0.001]
[1753118139431,7.154,3779.0,3778.9,0.4412]
[1753118140073,14.5,3779.3,3778.9,0.4412]
[1753118140234,3.0,3779.2,3778.9,0.4412]
[1753118140433,3.0,3780.1,3779.1,0.8332]
[1753118140674,3.0,3779.9,3779.2,0.46666062]
[1753118140976,3.0,3779.7,3779.2,3.11270425]
[1753118141274,4.154,3779.7,3779.5,2.64579843]
[1753118141489,4.154,3779.7,3779.6,3.08598262]
[1753118141663,3.0,3780.0,3779.6,0.4402]
[1753118141867,2.64570674,3779.8,3779.4,0.7665]
[1753118142072,4.154,3779.9,3779.5,0.4402]
[1753118142381,4.154,3779.9,3779.5,3.08601836]
[1753118142553,4.154,3779.9,3779.5,2.64581836]
[1753118142876,14.5,3779.8,3779.6,0.4402]
[1753118143084,4.154,3780.0,3779.6,0.4402]
[1753118143252,4.154,3780.0,3779.7,2.64564467]
[1753118143455,3.19524336,3780.4,3779.8,3.0857804]
[1753118143456,0.55,3780.4,3779.8,3.0857804]
[1753118143638,3.0,3780.2,3779.8,2.6455804]
[1753118143985,3.0,3780.0,3779.9,3.08577066]
[1753118144163,4.154,3780.2,3779.9,0.4402]
[1753118144337,0.002,3780.6,3780.0,0.4402]
[1753118144545,0.002,3780.6,3780.1,0.82755432]
[1753118144761,0.002,3780.6,3780.4,2.6451999]
[1753118144960,0.002,3780.6,3780.5,2.64515275]
[1753118145291,0.002,3780.6,3780.5,0.4402]
[1753118145781,0.002,3780.6,3780.5,3.08535275]
[1753118145986,0.002,3780.6,3780.5,3.91865275]
[1753118148466,0.002,3780.6,3780.5,4.05065275]
[1753118149581,0.002,3780.6,3780.5,8.07065275]
[1753118149764,0.002,3780.6,3780.5,5.4255]
[1753118150073,0.002,3780.6,3780.5,8.09710427]
[1753118150375,0.002,3780.6,3780.5,8.07065275]
[1753118151898,0.002,3781.4,3781.1,2.64467709]
[1753118152185,0.002,3781.4,3781.3,3.43679312]
[1753118153773,0.002,3781.4,3781.3,8.18809312]
[1753118160294,0.002,3781.4,3781.3,8.18609312]
[1753118160596,0.002,3781.4,3780.9,0.7531]
[1753118160895,0.002,3781.4,3780.7,2.64495273]
[1753118161097,2.77674229,3781.1,3780.4,0.132]
[1753118161258,2.77674229,3781.1,3780.5,4.149]
[1753118161259,17.14480853,3781.0,3780.5,4.149]
[1753118161597,14.5,3781.0,3780.7,2.64494733]
[1753118161766,14.5,3781.0,3780.8,4.148]
[1753118162402,17.14480913,3781.0,3780.8,4.148]
[1753118162564,14.5,3781.0,3780.5,0.02645152]
[1753118162898,0.132,3780.8,3780.7,4.148]
[1753118163201,0.132,3780.8,3780.7,6.79301282]
[1753118163574,0.002,3781.4,3780.7,4.6163]
[1753118163757,0.132,3781.3,3780.8,2.67133966]
[1753118163976,0.132,3781.3,3781.2,2.64466306]
[1753118164185,0.002,3781.4,3781.3,2.64459312]
[1753118164513,0.002,3781.4,3781.3,3.13933905]
[1753118165121,0.002,3781.4,3781.3,3.27133905]
[1753118166478,0.002,3781.4,3781.3,3.24489312]
[1753118166981,0.002,3781.4,3781.3,3.13933905]
[1753118167326,0.002,3781.4,3781.3,7.28733905]
[1753118167609,0.002,3781.4,3781.3,7.26089312]
[1753118169019,0.002,3781.4,3781.3,13.91979942]
[1753118169220,0.002,3781.4,3781.3,18.85449942]
[1753118169975,0.002,3781.4,3781.3,4.03259312]
[1753118170282,0.002,3781.4,3781.3,8.17959312]
[1753118170494,0.002,3781.4,3781.3,7.71129312]
[1753118170878,0.002,3781.4,3781.3,2.77659312]
[1753118171221,0.002,3781.4,3781.3,2.64459312]
[1753118171542,0.134,3781.4,3781.3,4.146]
[1753118171750,0.134,3781.4,3781.3,6.79059312]
[1753118172504,0.134,3781.4,3781.3,4.146]
[1753118172709,2.77853136,3781.4,3781.0,0.02644802]
[1753118172909,0.132,3781.3,3781.1,4.146]
[1753118173551,0.132,3781.3,3780.6,0.132]
[1753118173552,0.132,3781.3,3780.9,2.64486169]
[1753118173763,0.9328,3781.3,3780.6,0.132]
[1753118173927,0.132,3781.0,3780.8,0.02644942]
[1753118174460,0.132,3781.0,3780.7,0.02645012]
[1753118174611,0.132,3781.0,3780.9,4.146]
[1753118175141,0.132,3781.0,3780.7,0.02645012]
[1753118175326,0.132,3781.0,3780.9,4.146]
[1753118175909,0.132,3781.0,3780.7,0.02645012]
[1753118176161,2.64477858,3781.1,3780.8,4.146]
[1753118176330,0.4304,3781.0,3780.8,4.146]
[1753118177041,0.60921918,3781.1,3780.8,4.146]
[1753118177207,3.87581495,3781.3,3780.8,4.146]
[1753118177414,2.6447067,3781.2,3780.8,4.146]
[1753118177611,2.64476408,3781.1,3780.8,4.146]
[1753118177920,2.64482422,3781.0,3780.8,4.146]
[1753118178124,2.64482422,3781.0,3780.3,0.02645292]
[1753118178125,0.132,3780.8,3780.6,2.64507454]
[1753118178314,0.132,3780.8,3780.7,4.145]
[1753118178709,0.132,3780.8,3779.8,1.2917]
[1753118178710,0.5624,3780.8,3779.8,1.2917]
[1753118178950,0.132,3780.5,3779.9,6.79054699]
[1753118179149,2.64525502,3780.4,3779.9,4.145]
[1753118179311,0.132,3780.1,3779.9,4.17145572]
[1753118179652,0.132,3780.1,3779.6,0.001]
[1753118179850,0.7872,3780.5,3779.6,4.146]
[1753118180056,0.132,3780.0,3779.9,2.64557083]
[1753118180553,0.132,3780.0,3779.9,0.4672]
[1753118180853,0.132,3780.0,3779.9,0.49365572]
[1753118181056,0.132,3780.0,3779.9,3.13922835]
[1753118181228,0.132,3780.0,3779.7,0.02645712]
[1753118181758,0.7893,3779.9,3779.7,0.02645712]
[1753118181941,0.7893,3779.9,3779.6,0.001]
[1753118181942,6.32771262,3779.7,3779.6,0.001]
[1753118182326,6.75811262,3779.7,3779.6,0.001]
[1753118183558,3.682,3779.7,3779.6,0.001]
[1753118183741,3.132,3779.7,3779.6,0.001]
[1753118184463,0.132,3779.7,3779.6,0.001]
[1753118185016,0.132,3779.7,3779.6,2.64678262]
[1753118185353,0.132,3779.7,3779.6,3.11398262]
[1753118185553,0.132,3779.7,3779.6,0.49465782]
[1753118186456,0.132,3779.7,3779.6,0.02745782]
[1753118186830,0.132,3779.7,3779.6,0.001]
[1753118187235,3.52891768,3779.7,3779.6,0.001]
[1753118187435,4.28241768,3779.7,3779.6,0.001]
[1753118187783,7.83241768,3779.7,3779.6,0.001]
[1753118187968,11.84641768,3779.7,3779.6,0.001]
[1753118188317,7.70041768,3779.7,3779.6,0.001]
[1753118190267,11.84641768,3779.7,3779.6,0.001]
[1753118191424,12.04182698,3779.7,3779.6,0.001]
[1753118191635,12.14927467,3779.7,3779.6,0.001]
[1753118192060,8.00327467,3779.7,3779.6,0.001]
[1753118192250,12.14927467,3779.7,3779.6,0.001]
[1753118194100,8.00327467,3779.7,3779.6,0.001]
[1753118194252,12.14927467,3779.7,3779.6,0.001]
[1753118194585,8.00327467,3779.7,3779.6,0.001]
[1753118194786,12.15027467,3779.7,3779.6,0.001]
[1753118195490,8.00327467,3779.7,3779.6,0.001]
[1753118195648,12.15027467,3779.7,3779.6,0.001]
[1753118195851,11.95486537,3779.7,3779.6,0.001]
[1753118196650,6.72001768,3779.7,3779.6,0.001]
[1753118196972,7.9005,3779.7,3779.6,0.001]
[1753118197297,4.147,3779.7,3779.6,0.4682]
[1753118198490,4.147,3779.7,3779.6,0.001]
[1753118198904,6.79271262,3779.7,3779.6,0.001]
[1753118199068,9.28568684,3779.7,3779.6,0.001]
[1753118199269,9.83568684,3779.7,3779.6,0.001]
[1753118199610,3.0,3780.0,3779.6,0.001]
[1753118199773,4.147,3779.9,3779.6,0.4682]
[1753118200119,4.147,3779.8,3779.7,0.4672]
[1753118200289,3.0,3780.0,3779.7,0.4672]
[1753118200481,3.0,3780.0,3779.7,3.11288738]
[1753118200804,7.147,3779.9,3779.8,0.4672]
[1753118201801,7.81,3780.1,3779.8,0.4672]
[1753118202009,7.81,3780.1,3779.8,3.11284262]
[1753118202010,7.147,3780.0,3779.8,3.11284262]
[1753118202207,7.147,3780.0,3779.8,2.64564262]
[1753118202505,7.81,3780.1,3779.9,0.4672]
[1753118202704,4.147,3780.0,3779.9,0.4672]
[1753118203711,4.147,3780.0,3779.9,3.11277263]
[1753118203927,0.7757,3780.5,3779.9,3.11277263]
[1753118204088,1.52634059,3780.5,3779.9,3.11277263]
[1753118204288,4.146,3780.4,3779.9,3.11277263]
[1753118204493,4.146,3780.3,3779.9,0.4672]
[1753118205120,0.132,3779.9,3779.6,2.67321726]
[1753118205316,4.278,3779.9,3779.6,3.14041726]
[1753118205611,4.278,3779.9,3779.6,0.02745782]
[1753118205811,6.19571262,3779.7,3779.6,0.001]
[1753118206193,10.34171262,3779.7,3779.6,0.001]
[1753118206809,5.64571262,3779.7,3779.6,0.001]
[1753118206989,9.79171262,3779.7,3779.6,0.001]
[1753118208511,7.146,3779.7,3779.6,0.001]
[1753118208717,9.79171262,3779.7,3779.6,0.001]
[1753118209215,12.18500284,3779.7,3779.6,0.001]
[1753118210713,11.71040284,3779.7,3779.6,0.001]
[1753118211314,12.18500284,3779.7,3779.6,0.001]
[1753118213385,19.99500284,3779.7,3779.6,0.001]
[1753118214234,16.61930284,3779.7,3779.6,0.001]
[1753118214384,16.14470284,3779.7,3779.6,0.001]
[1753118214584,17.64499022,3779.7,3779.6,0.001]
[1753118214817,15.506,3779.7,3779.6,0.001]
[1753118215019,10.81,3779.7,3779.6,2.64678262]
[1753118215179,7.81,3780.5,3779.9,2.64556407]
[1753118215383,8.6044,3780.6,3780.0,0.4436]
[1753118215584,4.145,3780.5,3780.0,0.4436]
[1753118215805,3.0,3780.4,3780.0,0.4436]
[1753118216009,0.132,3780.0,3779.8,2.64562658]
[1753118216221,4.278,3780.0,3779.9,2.64557263]
[1753118216385,0.132,3780.0,3779.9,2.64557263]
[1753118216591,4.278,3780.0,3779.9,2.64557263]
[1753118216803,4.278,3780.0,3779.9,3.08917263]
[1753118217087,0.132,3780.0,3779.9,3.08917263]
[1753118217426,0.134,3780.6,3780.5,2.64515275]
[1753118217586,4.279,3780.6,3780.5,2.64515275]
[1753118217783,0.134,3780.6,3780.5,3.08875275]
[1753118218124,0.134,3780.6,3780.5,3.91935275]
[1753118220831,0.134,3780.6,3780.3,0.02645292]
[1753118221032,0.134,3780.6,3780.5,2.64515275]
[1753118221530,0.134,3780.6,3780.5,3.08875275]
[1753118221735,0.134,3780.6,3780.5,4.01855275]
[1753118221736,0.002,3780.6,3780.5,4.01855275]
[1753118222130,0.002,3781.0,3780.9,2.64487291]
[1753118222337,0.002,3781.0,3780.9,3.46912163]
[1753118222500,0.002,3781.0,3780.9,3.91272163]
[1753118228316,0.002,3781.0,3780.9,2.67132163]
[1753118228742,0.002,3781.0,3780.2,2.64536267]
[1753118228945,0.132,3780.7,3780.3,2.64524779]
[1753118229137,0.132,3780.5,3780.3,2.64524779]
[1753118229454,0.132,3780.5,3780.0,2.64545123]
[1753118229653,0.132,3780.5,3779.8,0.7568]
[1753118229654,0.132,3780.2,3779.8,2.6455899]
[1753118229969,0.132,3780.0,3779.9,2.64557263]
[1753118230765,0.132,3780.0,3779.9,3.08917263]
[1753118231249,0.132,3780.0,3779.9,2.64557263]
[1753118232519,0.132,3780.0,3779.9,3.08917263]
[1753118233956,0.132,3780.0,3779.7,0.02645712]
[1753118234257,0.132,3780.0,3779.7,2.64568633]
[1753118234567,0.132,3780.0,3779.9,2.64557263]
[1753118234762,0.132,3780.0,3779.9,2.64657263]
[1753118235652,0.132,3780.0,3779.9,0.001]
[1753118236563,0.132,3780.0,3779.9,2.64657263]
[1753118237340,0.132,3780.0,3779.9,0.001]
[1753118238768,0.9122,3780.0,3779.9,0.001]
[1753118238989,1.34684,3780.0,3779.9,0.001]
[1753118239135,9.47204,3780.0,3779.9,0.001]
[1753118240773,8.0532,3780.0,3779.9,0.001]
[1753118240941,7.273,3780.0,3779.9,0.001]
[1753118241368,3.132,3780.0,3779.9,0.001]
[1753118241663,4.273,3780.0,3779.9,2.64657263]
[1753118242451,4.273,3780.0,3779.9,0.001]
[1753118243875,18.773,3780.0,3779.9,0.001]
[1753118244075,19.2072,3780.0,3779.9,0.001]
[1753118244753,18.773,3780.0,3779.9,0.001]
[1753118244955,19.7572,3780.0,3779.9,0.001]
[1753118245751,22.7572,3780.0,3779.9,0.001]
[1753118248257,22.323,3780.0,3779.9,0.001]
[1753118248667,18.6162,3780.0,3779.9,0.001]
[1753118248889,22.7562,3780.0,3779.9,0.001]
[1753118249104,22.322,3780.0,3779.9,0.001]
[1753118249457,18.182,3780.0,3779.9,0.001]
[1753118249677,22.322,3780.0,3779.9,0.001]
[1753118250587,18.182,3780.0,3779.9,0.001]
[1753118251190,27.56605039,3780.0,3779.9,0.001]
[1753118251397,28.37585039,3780.0,3779.9,0.001]
[1753118251703,24.23585039,3780.0,3779.9,0.001]
[1753118251874,28.37485039,3780.0,3779.9,0.001]
[1753118252897,24.23585039,3780.0,3779.9,0.001]
[1753118253124,28.37485039,3780.0,3779.9,0.001]
[1753118254996,36.18485039,3780.0,3779.9,0.001]
[1753118255789,32.04585039,3780.0,3779.9,0.001]
[1753118255995,36.18485039,3780.0,3779.9,0.001]
[1753118256736,33.53934775,3780.0,3779.9,0.001]
[1753118257334,29.40034775,3780.0,3779.9,0.001]
[1753118257499,22.442,3780.0,3779.9,0.001]
[1753118257701,26.58,3780.0,3779.9,0.001]
[1753118257909,25.992,3780.0,3779.9,0.001]
[1753118258124,30.131,3780.0,3779.9,0.001]
[1753118259147,30.13,3780.0,3779.9,0.4438]
[1753118259712,30.13,3780.0,3779.9,0.001]
[1753118261050,32.75753393,3780.0,3779.9,0.001]
[1753118261277,35.83723657,3780.0,3779.9,0.001]
[1753118261717,36.60653657,3780.0,3779.9,0.001]
[1753118262612,33.52683393,3780.0,3779.9,0.001]
[1753118262813,25.442,3780.0,3779.9,0.001]
[1753118263036,29.58,3780.0,3779.9,0.001]
[1753118263217,30.13,3780.0,3779.9,0.001]
[1753118263557,22.442,3780.0,3779.9,0.4438]
[1753118263851,26.58,3780.0,3779.9,3.08937263]
[1753118264150,7.942,3780.0,3779.9,3.08937263]
[1753118264348,12.079,3780.0,3779.9,3.08937263]
[1753118265354,0.132,3780.0,3779.9,3.08937263]
[1753118265554,0.134,3780.6,3780.5,3.46875275]
[1753118265759,0.002,3780.6,3780.5,3.49520427]
[1753118265928,0.002,3780.6,3780.5,3.93800427]
[1753118266957,0.134,3780.6,3780.5,3.89725275]
[1753118268063,0.134,3780.6,3780.5,1.2521]
[1753118268266,0.134,3780.6,3780.3,0.02645292]
[1753118268575,0.132,3780.3,3780.2,3.40901072]
[1753118268780,0.132,3780.3,3780.2,3.83751072]
[1753118268981,0.132,3780.3,3779.9,0.7647]
[1753118269293,4.136,3780.5,3780.0,2.64545164]
[1753118269481,4.136,3780.5,3780.0,2.64550264]
[1753118269655,0.132,3780.0,3779.9,0.001]
[1753118270981,0.132,3780.0,3779.9,2.64657263]
[1753118271657,0.132,3780.0,3779.9,3.07507263]
[1753118273156,14.632,3780.0,3779.9,3.07507263]
[1753118273361,14.632,3780.0,3779.9,2.64657263]
[1753118273975,14.632,3780.0,3779.9,0.001]
[1753118274884,17.632,3780.0,3779.9,0.001]
[1753118276162,3.132,3780.0,3779.9,0.001]